[Event "35th European Club Cup 2019"]
[Site "Ulcinj"]
[Date "2019.11.15"]
[Round "6.17"]
[White "Romanov, Evgeny"]
[Black "Kobalia, Mikhail"]
[Result "1/2-1/2"]
[ECO "D02"]
[WhiteElo "2597"]
[BlackElo "2608"]
[Annotator "ChessBase"]
[PlyCount "67"]
[EventDate "2019.11.10"]
[EventType "team-tourn"]
[EventCountry "MNE"]
[SourceTitle "playchess.com"]
[Source "ChessBase"]
[SourceQuality "1"]
[WhiteTeam "Valerenga"]
[BlackTeam "Moscow Chess Team"]
[TimeControl "40/5400+30:1800+30"]

1. d4 {[%emt 0:00:00]} d5 {[%emt 0:00:00]} 2. Nf3 {[%emt 0:00:00]} Nf6 {[%emt 0:00:00]} 3. c4 {[%emt 0:00:00]} c6 {[%emt 0:00:00]} 4. Qb3 {[%emt 0:00:02]} e6 {[%emt 0:00:41]} 5. g3 {[%emt 0:01:20]} Nbd7 {[%emt 0:04:51]} 6. Bg2 {[%emt 0:00:18]} Be7 {[%emt 0:00:04]} 7. O-O {[%emt 0:00:19]} O-O {[%emt 0:00:04]} 8. Rd1 {[%emt 0:01:01]} b6 {[%emt 0:01:54]} 9. Nc3 {[%emt 0:00:57]} Ba6 {[%emt 0:03:04]} 10. cxd5 {[%emt 0:00:14]} cxd5 {[%emt 0:00:04]} 11. Bf4 {[%emt 0:04:12]} Nh5 {[%emt 0:09:32]} 12. Be3 {[%emt 0:03:32]} Nhf6 {[%emt 0:01:52]} 13. Bf4 {[%emt 0:00:18]} Nh5 {[%emt 0:00:04]} 14. Be3 {[%emt 0:00:05]} Nhf6 {[%emt 0:00:04]} 15. Ne5 {[%emt 0:02:57]} Nxe5 {[%emt 0:13:53]} 16. dxe5 {[%emt 0:00:13]} Nd7 {[%emt 0:00:48]} 17. Bd4 {[%emt 0:11:34]} Nc5 {[%emt 0:09:41]} 18. Qc2 {[%emt 0:00:54]} Rc8 {[%emt 0:00:20]} 19. Rac1 {[%emt 0:11:41]} Qe8 {[%emt 0:01:08]} 20. h4 {[%emt 0:08:25]} h6 {[%emt 0:02:25]} 21. b4 {[%emt 0:11:04]} Ne4 {[%emt 0:06:03]} 22. Bxe4 {[%emt 0:02:45]} dxe4 {[%emt 0:00:04]} 23. Qb1 {[%emt 0:00:09]} Bb7 {[%emt 0:09:33]} 24. a3 {[%emt 0:02:50]} Qc6 {[%emt 0:04:55]} 25. Be3 {[%emt 0:00:31]} Rfd8 {[%emt 0:01:45]} 26. Nd5 {[%emt 0:05:03]} Qe8 {[%emt 0:01:59]} 27. Nxe7+ {[%emt 0:01:02]} Qxe7 {[%emt 0:00:03]} 28. Rxd8+ {[%emt 0:00:41]} Qxd8 {[%emt 0:02:34]} 29. Rxc8 {[%emt 0:01:44]} Qxc8 {[%emt 0:00:09]} 30. Qc1 {[%emt 0:00:42]} Qd7 {[%emt 0:00:32]} 31. Qd2 {[%emt 0:03:27]} Bd5 {[%emt 0:06:40]} 32. Qc2 {[%emt 0:01:13]} Kh7 {[%emt 0:07:19]} 33. h5 {[%emt 0:05:48]} Kg8 {[%emt 0:01:39]} 34. a4 {[%emt 0:05:29]} 1/2-1/2

[Event "35th European Club Cup 2019"]
[Site "Ulcinj"]
[Date "2019.11.15"]
[Round "6.17"]
[White "Sakalauskas, Vaidas"]
[Black "Heinemann, Josefine"]
[Result "1-0"]
[ECO "E32"]
[WhiteElo "2319"]
[BlackElo "2339"]
[Annotator "NA"]
[PlyCount "167"]
[EventDate "2019.11.10"]
[EventType "team-tourn"]
[EventCountry "MNE"]
[SourceTitle "playchess.com"]
[Source "ChessBase"]
[SourceQuality "1"]
[WhiteTeam "MRU-ROSK Consulting"]
[BlackTeam "Viernheim"]
[TimeControl "40/5400+30:1800+30"]

1. d4 {[%emt 0:00:00]} Nf6 {[%emt 0:00:00]} 2. c4 {[%emt 0:00:00]} e6 {[%emt 0:00:00]} 3. Nc3 {[%emt 0:01:32]} Bb4 {[%emt 0:00:00]} 4. Qc2 {[%emt 0:01:20]} O-O {[%emt 0:00:00]} 5. a3 {[%emt 0:01:31]} Bxc3+ {[%emt 0:01:57]} 6. Qxc3 {[%emt 0:00:08]} d6 7. Nf3 {[%emt 0:06:01]} b6 {[%emt 0:01:52]} 8. g3 {[%emt 0:01:24]} Bb7 {[%emt 0:00:49]} 9. Bg2 {[%emt 0:00:07]} Nbd7 {[%emt 0:00:45]} 10. O-O {[%emt 0:00:23]} c5 {[%emt 0:03:39]} 11. b4 {[%emt 0:10:29]} Rc8 {[%emt 0:06:09]} 12. Bb2 {[%emt 0:10:49]} cxb4 {[%emt 0:11:08]} 13. axb4 {[%emt 0:03:45]} Bd5 {[%emt 0:00:51]} 14. Nd2 {[%emt 0:06:44]} Bxc4 {[%emt 0:03:21]} 15. Nxc4 {[%emt 0:00:07]} d5 {[%emt 0:00:17]} 16. Rxa7 {[%emt 0:00:33]} Rxc4 {[%emt 0:00:51]} 17. Qb3 {[%emt 0:04:55]} b5 {[%emt 0:01:12]} 18. Rb7 {[%emt 0:00:30]} Nb6 {[%emt 0:04:20]} 19. Ra1 {[%emt 0:09:09]} Qd6 {[%emt 0:08:33]} 20. Ra6 {[%emt 0:04:59]} Rc6 {[%emt 0:05:50]} 21. Ra5 {[%emt 0:01:14]} Nc4 {[%emt 0:10:26]} 22. Raxb5 {[%emt 0:00:08]} Nd7 {[%emt 0:00:30]} 23. e4 {[%emt 0:00:30]} Nd2 {[%emt 0:00:30]} 24. Qd3 {[%emt 0:00:30]} Nxe4 {[%emt 0:06:24]} 25. Bxe4 {[%emt 0:15:05]} dxe4 {[%emt 0:00:06]} 26. Qxe4 {[%emt 0:00:02]} Nf6 {[%emt 0:00:14]} 27. Qe5 {[%emt 0:00:25]} Qxe5 {[%emt 0:05:24]} 28. dxe5 {[%emt 0:00:24]} Ne4 {[%emt 0:00:21]} 29. Bd4 {[%emt 0:01:28]} g5 {[%emt 0:04:59]} 30. Be3 {[%emt 0:06:47]} Kg7 {[%emt 0:01:41]} 31. Rb8 {[%emt 0:00:39]} Rfc8 {[%emt 0:04:31]} 32. Rxc8 {[%emt 0:00:11]} Rxc8 {[%emt 0:00:03]} 33. Rb7 {[%emt 0:01:57]} g4 {[%emt 0:02:10]} 34. b5 {[%emt 0:03:50]} Rc2 {[%emt 0:00:21]} 35. b6 {[%emt 0:01:21]} Nd2 {[%emt 0:03:24]} 36. Bxd2 {[%emt 0:02:12]} Rxd2 {[%emt 0:00:04]} 37. Rc7 {[%emt 0:00:06]} Rd1+ {[%emt 0:02:28]} 38. Kg2 {[%emt 0:00:05]} Rb1 {[%emt 0:00:04]} 39. b7 {[%emt 0:00:03]} Kg6 {[%emt 0:00:29]} 40. f4 {[%emt 0:00:00]} Rb2+ {[%emt 0:00:00]} 41. Kf1 {[%emt 0:00:23]} h5 {[%emt 0:01:12]} 42. Ke1 {[%emt 0:01:51]} f6 {[%emt 0:06:26]} 43. exf6 {[%emt 0:00:55]} Kxf6 {[%emt 0:00:05]} 44. Kd1 {[%emt 0:00:26]} Kf5 {[%emt 0:00:57]} 45. Re7 {[%emt 0:04:42]} Kf6 {[%emt 0:01:40]} 46. Rh7 {[%emt 0:00:57]} Kg6 {[%emt 0:00:07]} 47. Rd7 {[%emt 0:07:22]} Kf5 {[%emt 0:05:58]} 48. Kc1 {[%emt 0:00:44]} Rb6 {[%emt 0:00:19]} 49. Kc2 {[%emt 0:00:32]} e5 {[%emt 0:05:18]} 50. fxe5 {[%emt 0:00:30]} Kxe5 {[%emt 0:00:04]} 51. Kd3 {[%emt 0:00:34]} Rb2 {[%emt 0:05:51]} 52. Rh7 {[%emt 0:01:32]} Ke6 {[%emt 0:01:38]} 53. Kd4 {[%emt 0:00:27]} Kd6 {[%emt 0:01:02]} 54. Ke4 {[%emt 0:00:07]} Ke6 {[%emt 0:00:34]} 55. Kf4 {[%emt 0:00:38]} Kf6 {[%emt 0:00:39]} 56. Rh6+ {[%emt 0:00:32]} Kg7 {[%emt 0:00:07]} 57. Rxh5 {[%emt 0:00:07]} Rxb7 {[%emt 0:00:39]} 58. Kxg4 {[%emt 0:00:15]} Kg6 {[%emt 0:00:05]} 59. Rg5+ {[%emt 0:00:22]} Kh6 {[%emt 0:00:05]} 60. h4 {[%emt 0:00:09]} Rb4+ {[%emt 0:00:34]} 61. Kh3 {[%emt 0:00:30]} Rb3 {[%emt 0:00:45]} 62. Re5 {[%emt 0:00:39]} Kg6 {[%emt 0:01:08]} 63. h5+ {[%emt 0:00:49]} Kh6 {[%emt 0:00:07]} 64. Kh4 {[%emt 0:00:08]} Rb4+ {[%emt 0:01:53]} 65. g4 {[%emt 0:00:07]} Ra4 {[%emt 0:00:06]} 66. Re6+ {[%emt 0:00:11]} Kh7 {[%emt 0:00:15]} 67. h6 {[%emt 0:01:00]} Ra5 {[%emt 0:01:21]} 68. Rf6 {[%emt 0:00:30]} Rb5 {[%emt 0:00:32]} 69. g5 {[%emt 0:00:32]} Ra5 {[%emt 0:00:32]} 70. Kh5 {[%emt 0:00:09]} Rb5 {[%emt 0:00:24]} 71. Rf7+ {[%emt 0:00:35]} Kg8 {[%emt 0:00:13]} 72. Rg7+ {[%emt 0:00:25]} Kh8 {[%emt 0:00:05]} 73. Re7 {[%emt 0:00:04]} Ra5 {[%emt 0:00:44]} 74. Kg6 {[%emt 0:00:21]} Ra6+ {[%emt 0:00:07]} 75. Kf5 {[%emt 0:00:06]} Ra5+ {[%emt 0:01:12]} 76. Kf6 {[%emt 0:00:09]} Ra6+ {[%emt 0:00:19]} 77. Re6 {[%emt 0:00:09]} Ra8 {[%emt 0:01:09]} 78. g6 {[%emt 0:00:34]} Rb8 {[%emt 0:00:29]} 79. Re5 {[%emt 0:00:12]} Ra8 {[%emt 0:01:01]} 80. Kg5 {[%emt 0:00:09]} Rb8 {[%emt 0:00:51]} 81. Rf5 {[%emt 0:00:27]} Ra8 {[%emt 0:00:18]} 82. Rf8+ {[%emt 0:01:15]} Rxf8 {[%emt 0:00:07]} 83. g7+ {[%emt 0:00:03]} Kh7 {[%emt 0:00:48]} 84. gxf8=B {[%emt 0:00:34]} 1-0

[Event "35th European Club Cup 2019"]
[Site "Ulcinj"]
[Date "2019.11.15"]
[Round "6.17"]
[White "Goormachtigh, Johan"]
[Black "Lundin, Jan"]
[Result "1/2-1/2"]
[ECO "D02"]
[WhiteElo "2180"]
[BlackElo "2300"]
[Annotator "NA"]
[PlyCount "63"]
[EventDate "2019.11.10"]
[EventType "team-tourn"]
[EventCountry "MNE"]
[SourceTitle "playchess.com"]
[Source "ChessBase"]
[SourceQuality "1"]
[WhiteTeam "KGSRL Gent"]
[BlackTeam "Berlin"]
[TimeControl "40/5400+30:1800+30"]

1. d4 {[%emt 0:00:00]} d5 {[%emt 0:00:00]} 2. Nf3 {[%emt 0:00:14]} e6 {[%emt 0:00:03]} 3. c4 {[%emt 0:00:44]} c5 {[%emt 0:00:18]} 4. cxd5 {[%emt 0:01:51]} exd5 {[%emt 0:00:09]} 5. g3 {[%emt 0:00:23]} Nc6 {[%emt 0:00:10]} 6. Bg2 {[%emt 0:00:11]} c4 {[%emt 0:00:22]} 7. O-O {[%emt 0:00:31]} Bb4 {[%emt 0:00:07]} 8. b3 {[%emt 0:42:51]} cxb3 {[%emt 0:02:05]} 9. Qxb3 {[%emt 0:02:01]} Nge7 {[%emt 0:00:25]} 10. Ba3 {[%emt 0:09:43]} a5 {[%emt 0:01:05]} 11. Bxb4 {[%emt 0:01:14]} axb4 {[%emt 0:00:08]} 12. Nbd2 {[%emt 0:01:03]} Ra3 {[%emt 0:13:55]} 13. Qb2 {[%emt 0:00:17]} Bg4 {[%emt 0:00:35]} 14. Ne5 {[%emt 0:03:35]} Be6 {[%emt 0:03:47]} 15. Nd3 {[%emt 0:03:57]} Qb6 {[%emt 0:02:58]} 16. Rfb1 {[%emt 0:08:10]} Qxd4 {[%emt 0:07:53]} 17. Nxb4 {[%emt 0:00:20]} Qxb2 {[%emt 0:01:07]} 18. Rxb2 {[%emt 0:00:07]} O-O {[%emt 0:01:25]} 19. Nc2 {[%emt 0:00:34]} Rc3 {[%emt 0:07:03]} 20. Nf3 {[%emt 0:05:23]} Rc8 {[%emt 0:02:04]} 21. h3 {[%emt 0:00:57]} Nf5 {[%emt 0:04:23]} 22. Rd1 {[%emt 0:02:44]} Rc4 {[%emt 0:23:46]} 23. e3 {[%emt 0:01:28]} Kf8 {[%emt 0:03:05]} 24. Ncd4 {[%emt 0:02:30]} Ncxd4 {[%emt 0:01:44]} 25. Nxd4 {[%emt 0:00:12]} Nxd4 {[%emt 0:01:25]} 26. Rxd4 {[%emt 0:00:44]} Rxd4 {[%emt 0:00:15]} 27. exd4 {[%emt 0:00:02]} Rc1+ {[%emt 0:02:01]} 28. Kh2 {[%emt 0:00:06]} Rd1 {[%emt 0:00:46]} 29. Rxb7 {[%emt 0:08:17]} Rxd4 {[%emt 0:02:53]} 30. Rb2 {[%emt 0:02:38]} Ra4 {[%emt 0:01:14]} 31. Rd2 {[%emt 0:00:52]} d4 {[%emt 0:02:22]} 32. a3 {[%emt 0:00:23]} 1/2-1/2

[Event "35th European Club Cup 2019"]
[Site "Ulcinj"]
[Date "2019.11.15"]
[Round "6.17"]
[White "Lamser, Jan"]
[Black "Kirszenberg, Marc"]
[Result "0-1"]
[ECO "D16"]
[WhiteElo "2134"]
[BlackElo "2137"]
[Annotator "NA"]
[PlyCount "54"]
[EventDate "2019.11.10"]
[EventType "team-tourn"]
[EventCountry "MNE"]
[SourceTitle "playchess.com"]
[Source "ChessBase"]
[SourceQuality "1"]
[WhiteTeam "Unichess"]
[BlackTeam "Asnieres"]
[TimeControl "40/5400+30:1800+30"]

1. d4 {[%emt 0:00:00]} d5 {[%emt 0:00:00]} 2. Nf3 {[%emt 0:00:29]} Nf6 {[%emt 0:00:00]} 3. c4 {[%emt 0:00:29]} c6 {[%emt 0:00:00]} 4. Nc3 {[%emt 0:00:49]} dxc4 {[%emt 0:00:00]} 5. a4 {[%emt 0:00:40]} e6 {[%emt 0:00:00]} 6. e3 {[%emt 0:01:14]} c5 {[%emt 0:00:19]} 7. Bxc4 {[%emt 0:00:36]} Nc6 {[%emt 0:00:10]} 8. O-O {[%emt 0:02:04]} cxd4 {[%emt 0:00:23]} 9. exd4 {[%emt 0:00:12]} Be7 {[%emt 0:00:11]} 10. Qe2 {[%emt 0:01:51]} O-O {[%emt 0:00:07]} 11. Rd1 {[%emt 0:00:22]} Nb4 {[%emt 0:00:42]} 12. Bf4 {[%emt 0:03:28]} b6 {[%emt 0:04:39]} 13. Re1 {[%emt 0:13:34]} Bb7 {[%emt 0:06:45]} 14. Rad1 {[%emt 0:00:47]} Nbd5 {[%emt 0:02:00]} 15. Bg3 {[%emt 0:02:54]} Rc8 {[%emt 0:04:08]} 16. Ne5 {[%emt 0:02:57]} Nxc3 {[%emt 0:07:04]} 17. bxc3 {[%emt 0:00:04]} Bd5 {[%emt 0:01:16]} 18. Rc1 {[%emt 0:02:31]} Bxc4 {[%emt 0:14:08]} 19. Nxc4 {[%emt 0:00:30]} Nd5 {[%emt 0:00:37]} 20. Qa2 {[%emt 0:06:40]} Nxc3 {[%emt 0:19:10]} 21. Rxc3 {[%emt 0:00:54]} Bb4 {[%emt 0:00:06]} 22. Rec1 {[%emt 0:05:44]} Bxc3 {[%emt 0:00:37]} 23. Rxc3 {[%emt 0:07:07]} Qxd4 {[%emt 0:00:51]} 24. Qc2 {[%emt 0:00:58]} Rfd8 {[%emt 0:00:34]} 25. Kf1 {[%emt 0:01:58]} Qd1+ {[%emt 0:01:41]} 26. Qxd1 {[%emt 0:00:17]} Rxd1+ {[%emt 0:00:03]} 27. Ke2 {[%emt 0:00:09]} Rd4 {[%emt 0:00:14]} 0-1

[Event "35th European Club Cup 2019"]
[Site "Ulcinj"]
[Date "2019.11.15"]
[Round "6.18"]
[White "Murzin, Volodar"]
[Black "Kaasen, Tor Fredrik"]
[Result "1/2-1/2"]
[ECO "B90"]
[WhiteElo "2429"]
[BlackElo "2405"]
[Annotator "NA"]
[PlyCount "105"]
[EventDate "2019.11.10"]
[EventType "team-tourn"]
[EventCountry "MNE"]
[SourceTitle "playchess.com"]
[Source "ChessBase"]
[SourceQuality "1"]
[WhiteTeam "Moscow Chess Team"]
[BlackTeam "Valerenga"]
[TimeControl "40/5400+30:1800+30"]

1. e4 {[%emt 0:00:00]} c5 {[%emt 0:00:09]} 2. Nf3 {[%emt 0:00:00]} d6 {[%emt 0:00:22]} 3. d4 {[%emt 0:00:20]} cxd4 {[%emt 0:00:15]} 4. Nxd4 {[%emt 0:00:05]} Nf6 {[%emt 0:00:13]} 5. Nc3 {[%emt 0:00:08]} a6 {[%emt 0:00:31]} 6. h3 {[%emt 0:00:07]} e6 {[%emt 0:01:27]} 7. g4 {[%emt 0:00:24]} h6 {[%emt 0:00:22]} 8. h4 {[%emt 0:18:02]} Nc6 {[%emt 0:06:50]} 9. Rg1 {[%emt 0:04:02]} Nd7 {[%emt 0:08:09]} 10. g5 {[%emt 0:01:05]} hxg5 {[%emt 0:02:59]} 11. hxg5 {[%emt 0:01:17]} Nxd4 {[%emt 0:03:21]} 12. Qxd4 {[%emt 0:00:07]} Ne5 {[%emt 0:01:51]} 13. Be2 {[%emt 0:01:06]} b5 {[%emt 0:00:56]} 14. Be3 {[%emt 0:01:28]} Bb7 {[%emt 0:03:55]} 15. f4 {[%emt 0:09:08]} Nc6 {[%emt 0:02:53]} 16. Qd2 {[%emt 0:00:16]} Qa5 {[%emt 0:01:13]} 17. Bg4 {[%emt 0:08:49]} b4 {[%emt 0:05:40]} 18. Nd1 {[%emt 0:06:12]} g6 {[%emt 0:02:58]} 19. c3 {[%emt 0:15:59]} Bg7 {[%emt 0:04:56]} 20. a3 {[%emt 0:02:05]} bxc3 {[%emt 0:06:17]} 21. Nxc3 {[%emt 0:01:24]} Rc8 {[%emt 0:07:36]} 22. Rd1 {[%emt 0:05:52]} Bxc3 {[%emt 0:12:04]} 23. bxc3 {[%emt 0:04:12]} Qxa3 {[%emt 0:00:36]} 24. Bf3 {[%emt 0:09:55]} Na5 {[%emt 0:03:46]} 25. Qxd6 {[%emt 0:07:22]} Qxc3+ {[%emt 0:03:54]} 26. Qd2 {[%emt 0:01:07]} Rh2 {[%emt 0:07:09]} 27. Rg2 {[%emt 0:00:46]} Rh1+ {[%emt 0:01:45]} 28. Kf2 {[%emt 0:00:23]} Qxd2+ {[%emt 0:02:05]} 29. Bxd2 {[%emt 0:00:59]} Rxd1 {[%emt 0:01:05]} 30. Bxd1 {[%emt 0:00:01]} Nc4 {[%emt 0:00:13]} 31. Be1 {[%emt 0:00:54]} Bxe4 {[%emt 0:01:43]} 32. Rh2 {[%emt 0:00:02]} Kd7 {[%emt 0:02:07]} 33. Rh7 {[%emt 0:00:17]} Nd6 {[%emt 0:00:18]} 34. Bb4 {[%emt 0:00:27]} Rc4 {[%emt 0:01:27]} 35. Bxd6 {[%emt 0:00:30]} Kxd6 {[%emt 0:00:11]} 36. Rxf7 {[%emt 0:00:20]} Bf5 {[%emt 0:03:16]} 37. Ra7 {[%emt 0:00:25]} Rxf4+ {[%emt 0:00:42]} 38. Kg3 {[%emt 0:00:05]} Rf1 {[%emt 0:00:23]} 39. Rxa6+ {[%emt 0:00:03]} Ke5 {[%emt 0:00:35]} 40. Ra5+ {[%emt 0:00:00]} Kd4 {[%emt 0:00:00]} 41. Ra4+ {[%emt 0:06:21]} Kc5 {[%emt 0:04:01]} 42. Bf3 {[%emt 0:04:08]} e5 {[%emt 0:04:27]} 43. Ra5+ {[%emt 0:00:12]} Kd6 {[%emt 0:00:06]} 44. Ra6+ {[%emt 0:00:12]} Kc7 {[%emt 0:00:23]} 45. Ra7+ {[%emt 0:02:00]} Kb6 {[%emt 0:00:57]} 46. Re7 {[%emt 0:00:28]} Rg1+ {[%emt 0:07:34]} 47. Kf2 {[%emt 0:00:15]} Rxg5 {[%emt 0:01:00]} 48. Rxe5 {[%emt 0:00:05]} Kc7 {[%emt 0:00:10]} 49. Rd5 {[%emt 0:00:02]} Kb6 {[%emt 0:00:19]} 50. Be2 {[%emt 0:00:56]} Rg2+ {[%emt 0:00:50]} 51. Kxg2 {[%emt 0:00:02]} Be4+ {[%emt 0:00:06]} 52. Bf3 {[%emt 0:00:03]} Bxd5 {[%emt 0:00:04]} 53. Bxd5 {[%emt 0:00:04]} 1/2-1/2

[Event "35th European Club Cup 2019"]
[Site "Ulcinj"]
[Date "2019.11.15"]
[Round "6.18"]
[White "Nogly, Christoph"]
[Black "Vanheirzeele, Daniel"]
[Result "1-0"]
[ECO "E04"]
[WhiteElo "2235"]
[BlackElo "2105"]
[Annotator "NA"]
[PlyCount "103"]
[EventDate "2019.11.10"]
[EventType "team-tourn"]
[EventCountry "MNE"]
[SourceTitle "playchess.com"]
[Source "ChessBase"]
[SourceQuality "1"]
[WhiteTeam "Berlin"]
[BlackTeam "KGSRL Gent"]
[TimeControl "40/5400+30:1800+30"]

1. d4 {[%emt 0:00:00]} Nf6 {[%emt 0:00:00]} 2. c4 {[%emt 0:00:00]} e6 {[%emt 0:00:00]} 3. g3 {[%emt 0:00:00]} d5 {[%emt 0:00:00]} 4. Bg2 {[%emt 0:00:00]} dxc4 {[%emt 0:02:34]} 5. Nf3 {[%emt 0:00:00]} Bb4+ {[%emt 0:00:16]} 6. Nbd2 {[%emt 0:00:53]} c3 {[%emt 0:02:42]} 7. bxc3 {[%emt 0:00:20]} Bxc3 {[%emt 0:00:05]} 8. Rb1 {[%emt 0:00:14]} O-O {[%emt 0:04:22]} 9. O-O {[%emt 0:03:17]} Nc6 {[%emt 0:06:32]} 10. Ba3 {[%emt 0:31:16]} Re8 {[%emt 0:07:13]} 11. Qc2 {[%emt 0:01:38]} Ba5 {[%emt 0:21:59]} 12. Nc4 {[%emt 0:05:42]} Bb6 {[%emt 0:02:42]} 13. Rfd1 {[%emt 0:03:26]} Bd7 {[%emt 0:08:10]} 14. e3 {[%emt 0:09:44]} Ne7 {[%emt 0:09:48]} 15. Nfe5 {[%emt 0:05:22]} Rb8 {[%emt 0:01:45]} 16. Rbc1 {[%emt 0:14:16]} Ng6 {[%emt 0:15:13]} 17. Nxb6 {[%emt 0:06:48]} cxb6 {[%emt 0:01:11]} 18. Qc7 {[%emt 0:00:06]} Nxe5 {[%emt 0:01:51]} 19. dxe5 {[%emt 0:00:41]} Nd5 {[%emt 0:04:10]} 20. Qxd8 {[%emt 0:04:07]} Rbxd8 {[%emt 0:00:29]} 21. e4 {[%emt 0:00:48]} Ne7 {[%emt 0:00:39]} 22. Bxe7 {[%emt 0:00:18]} Rxe7 {[%emt 0:00:03]} 23. Rc7 {[%emt 0:00:08]} Kf8 {[%emt 0:00:59]} 24. Rxb7 {[%emt 0:01:48]} Ke8 {[%emt 0:00:03]} 25. Rxa7 {[%emt 0:01:38]} Bc6 {[%emt 0:01:24]} 26. Rxd8+ {[%emt 0:01:16]} Kxd8 {[%emt 0:00:04]} 27. Rxe7 {[%emt 0:00:15]} Kxe7 {[%emt 0:00:03]} 28. Kf1 {[%emt 0:01:03]} Bb5+ {[%emt 0:03:13]} 29. Ke1 {[%emt 0:00:08]} Kd7 {[%emt 0:00:06]} 30. Kd2 {[%emt 0:00:07]} Kc6 {[%emt 0:00:18]} 31. Kc3 {[%emt 0:00:12]} Kc5 {[%emt 0:00:20]} 32. a3 {[%emt 0:01:23]} Be2 {[%emt 0:01:43]} 33. f4 {[%emt 0:00:12]} g6 {[%emt 0:00:59]} 34. Bh3 {[%emt 0:02:04]} h5 {[%emt 0:02:07]} 35. Bg2 {[%emt 0:03:31]} Bb5 {[%emt 0:01:15]} 36. Bf3 {[%emt 0:00:48]} Bc6 {[%emt 0:00:37]} 37. Bg2 {[%emt 0:02:23]} Bb7 {[%emt 0:00:15]} 38. Bh1 {[%emt 0:00:10]} Bc6 {[%emt 0:00:08]} 39. Bg2 {[%emt 0:00:14]} Bb7 {[%emt 0:00:06]} 40. Bf3 {[%emt 0:00:00]} Bc6 {[%emt 0:00:00]} 41. h4 {[%emt 0:05:24]} Bb7 {[%emt 0:04:12]} 42. Kd3 {[%emt 0:00:29]} Kb5 {[%emt 0:08:15]} 43. Bd1 {[%emt 0:00:54]} Bc6 {[%emt 0:02:25]} 44. Kd4 {[%emt 0:03:14]} Bd7 {[%emt 0:03:33]} 45. Bc2 {[%emt 0:11:28]} Bc8 {[%emt 0:09:15]} 46. Bb3 {[%emt 0:00:23]} Bd7 {[%emt 0:00:09]} 47. f5 {[%emt 0:04:37]} Bc8 {[%emt 0:00:56]} 48. Ke3 {[%emt 0:01:28]} Kc5 {[%emt 0:01:53]} 49. Kf4 {[%emt 0:00:05]} Kd4 {[%emt 0:00:25]} 50. fxg6 {[%emt 0:03:12]} fxg6 {[%emt 0:00:04]} 51. Kg5 {[%emt 0:00:07]} Kxe4 {[%emt 0:00:31]} 52. Kf6 {[%emt 0:01:41] Kd5} 1-0

[Event "35th European Club Cup 2019"]
[Site "Ulcinj"]
[Date "2019.11.15"]
[Round "6.18"]
[White "Martin, Stefan"]
[Black "Setkauskas, Vaidas"]
[Result "0-1"]
[ECO "A52"]
[WhiteElo "2141"]
[BlackElo "2195"]
[Annotator "NA"]
[PlyCount "50"]
[EventDate "2019.11.10"]
[EventType "team-tourn"]
[EventCountry "MNE"]
[SourceTitle "playchess.com"]
[Source "ChessBase"]
[SourceQuality "1"]
[WhiteTeam "Viernheim"]
[BlackTeam "MRU-ROSK Consulting"]
[TimeControl "40/5400+30:1800+30"]

1. d4 {[%emt 0:00:00]} Nf6 {[%emt 0:00:00]} 2. c4 {[%emt 0:00:00]} e5 {[%emt 0:01:02]} 3. dxe5 {[%emt 0:00:00]} Ng4 {[%emt 0:00:05]} 4. Bf4 {[%emt 0:00:00]} Bb4+ {[%emt 0:00:24]} 5. Nd2 {[%emt 0:00:30]} d6 {[%emt 0:00:55]} 6. a3 {[%emt 0:13:07]} dxe5 7. Bg3 {[%emt 0:02:42]} Bxd2+ {[%emt 0:06:20]} 8. Qxd2 {[%emt 0:00:06]} Qxd2+ {[%emt 0:00:08]} 9. Kxd2 {[%emt 0:00:04]} Nc6 {[%emt 0:00:32]} 10. f3 {[%emt 0:10:41]} Nf6 {[%emt 0:02:59]} 11. e3 {[%emt 0:12:08]} Bf5 {[%emt 0:00:38]} 12. Kc3 {[%emt 0:02:08]} O-O-O {[%emt 0:10:37]} 13. Nh3 {[%emt 0:18:32]} e4 {[%emt 0:03:16]} 14. f4 {[%emt 0:08:36]} Rd7 {[%emt 0:18:27]} 15. Nf2 {[%emt 0:02:46]} Ng4 {[%emt 0:00:12]} 16. Nxg4 {[%emt 0:08:54]} Bxg4 {[%emt 0:00:16]} 17. c5 {[%emt 0:01:28]} Rhd8 {[%emt 0:01:57]} 18. Bc4 {[%emt 0:02:44]} Na5 {[%emt 0:08:29]} 19. Bf1 {[%emt 0:06:35]} Rd1 {[%emt 0:19:01]} 20. Bc4 {[%emt 0:01:30]} R1d2 {[%emt 0:10:08]} 21. Bf1 {[%emt 0:01:05]} Bd1 {[%emt 0:00:46]} 22. Rc1 {[%emt 0:02:15]} R2d3+ {[%emt 0:00:14]} 23. Bxd3 {[%emt 0:01:21]} Rxd3+ {[%emt 0:00:02]} 24. Kb4 {[%emt 0:00:13]} Nc6+ {[%emt 0:00:14]} 25. Kc4 {[%emt 0:00:29]} Bb3+ {[%emt 0:00:05] Kd4} 0-1

[Event "35th European Club Cup 2019"]
[Site "Ulcinj"]
[Date "2019.11.15"]
[Round "6.18"]
[White "Moingt, Jean-Claude"]
[Black "Vanek, Petr"]
[Result "1/2-1/2"]
[ECO "C01"]
[WhiteElo "2127"]
[BlackElo "2049"]
[Annotator "NA"]
[PlyCount "66"]
[EventDate "2019.11.10"]
[EventType "team-tourn"]
[EventCountry "MNE"]
[SourceTitle "playchess.com"]
[Source "ChessBase"]
[SourceQuality "1"]
[WhiteTeam "Asnieres"]
[BlackTeam "Unichess"]
[TimeControl "40/5400+30:1800+30"]

1. e4 {[%emt 0:00:00]} e6 {[%emt 0:00:00]} 2. d4 {[%emt 0:00:37]} d5 {[%emt 0:00:00]} 3. exd5 {[%emt 0:00:35]} exd5 {[%emt 0:00:00]} 4. Nf3 {[%emt 0:00:12]} Nc6 {[%emt 0:00:39]} 5. Bd3 {[%emt 0:01:50]} Bd6 {[%emt 0:00:12]} 6. Nc3 {[%emt 0:01:53]} Nge7 {[%emt 0:00:27]} 7. Nb5 {[%emt 0:01:18]} Nb4 {[%emt 0:06:55]} 8. Nxd6+ {[%emt 0:09:24]} Qxd6 {[%emt 0:00:09]} 9. Bb5+ {[%emt 0:00:43]} Bd7 {[%emt 0:00:16]} 10. Bxd7+ {[%emt 0:00:27]} Qxd7 {[%emt 0:00:08]} 11. c3 {[%emt 0:01:48]} Nbc6 {[%emt 0:02:02]} 12. O-O {[%emt 0:01:46]} O-O {[%emt 0:00:10]} 13. Qd3 {[%emt 0:02:43]} Ng6 {[%emt 0:05:14]} 14. Re1 {[%emt 0:05:55]} Rfe8 {[%emt 0:02:47]} 15. Bd2 {[%emt 0:00:23]} a6 {[%emt 0:04:06]} 16. Kf1 {[%emt 0:08:17]} h6 {[%emt 0:09:21]} 17. b3 {[%emt 0:04:13]} Rxe1+ {[%emt 0:00:48]} 18. Rxe1 {[%emt 0:00:11]} Re8 {[%emt 0:00:06]} 19. Rxe8+ {[%emt 0:03:30]} Qxe8 {[%emt 0:03:23]} 20. Ne1 {[%emt 0:10:57]} Qe6 {[%emt 0:03:31]} 21. Qe2 {[%emt 0:01:44]} Qxe2+ {[%emt 0:07:02]} 22. Kxe2 {[%emt 0:00:06]} Kf8 {[%emt 0:01:08]} 23. Nd3 {[%emt 0:00:41]} b6 {[%emt 0:00:25]} 24. Bf4 {[%emt 0:09:10]} Nxf4+ {[%emt 0:01:00]} 25. Nxf4 {[%emt 0:00:06]} Ne7 {[%emt 0:00:14]} 26. h4 {[%emt 0:01:56]} g6 {[%emt 0:03:12]} 27. g4 {[%emt 0:02:12]} Ke8 {[%emt 0:00:12]} 28. h5 {[%emt 0:02:50]} g5 {[%emt 0:01:38]} 29. Nd3 Kd7 {[%emt 0:03:45]} 30. f4 {[%emt 0:02:38]} f6 {[%emt 0:02:06]} 31. fxg5 {[%emt 0:00:27]} fxg5 {[%emt 0:00:11]} 32. Ne5+ {[%emt 0:00:56]} Ke6 {[%emt 0:00:11]} 33. Kd3 {[%emt 0:04:32]} c5 {Ke4 Kxe5+} 1/2-1/2